Department Family,Entity,Date,Expense Type,Expense Area,Supplier,Transaction Number,Amount,Description
Department of Health,"NHS Beds, Luton & Mk CCG",30/06/2022,Clinical&Medical-Independent Sector,COMMISSIONING - NON ACUTE,SPECSAVERS HEARCARE LTD,41167723,30932.70,Hearing Aid Service
Department of Health,"NHS Beds, Luton & Mk CCG",30/06/2022,Clinical&Medical-Independent Sector,ACUTE COMMISSIONING,SPAMEDICA LTD,41188950,120764.94,Independent Sector Healthcare Contract
Department of Health,"NHS Beds, Luton & Mk CCG",30/06/2022,Clinical&Medical-Independent Sector,PLANNED CARE,BOURN HALL CLINIC,41189230,41370.00,Specialist Fertility Services (IVF)
Department of Health,"NHS Beds, Luton & Mk CCG",30/06/2022,Clinical&Medical-Independent Sector,ACUTE COMMISSIONING,SPIRE HEALTHCARE LTD,41189521,147043.12,Independent Sector Healthcare Contract
Department of Health,"NHS Beds, Luton & Mk CCG",30/06/2022,Clinical&Medical-Voluntary Sector,HOSPICES,GARDEN HOUSE HOSPICE,41189702,28502.50,Hospice Services
Department of Health,"NHS Beds, Luton & Mk CCG",30/06/2022,Clinical&Medical-Serv Recd-CCGs,PRIMARY CARE IT,NHS EAST AND NORTH HERTFORDSHIRE CCG,41193514,258479.81,GP Services
Department of Health,"NHS Beds, Luton & Mk CCG",30/06/2022,Clinical&Medical-Independent Sector,CARERS,CASTLEMEAD COURT CARE CENTRE LTD,41209659,30600.00,Care Fees
Department of Health,"NHS Beds, Luton & Mk CCG",30/06/2022,Clinical&Medical-Clinical Other,PRESCRIBING,NORTH WEST OSTOMY SUPPLIES,41209801,34001.68,GP Services
Department of Health,"NHS Beds, Luton & Mk CCG",30/06/2022,Non-NHS trade Payables <1Yr Other WGA,BALANCE SHEET,SUPPLY CHAIN COORDINATION LIMITED,41218487,27767.07,Catalogue Products
Department of Health,"NHS Beds, Luton & Mk CCG",30/06/2022,Non-NHS trade Payables <1Yr Other WGA,BALANCE SHEET,SUPPLY CHAIN COORDINATION LIMITED,41218573,28812.32,Catalogue Products
Department of Health,"NHS Beds, Luton & Mk CCG",30/06/2022,Non-NHS trade Payables <1Yr Other WGA,BALANCE SHEET,SUPPLY CHAIN COORDINATION LIMITED,41218944,25339.93,Catalogue Products
Department of Health,"NHS Beds, Luton & Mk CCG",30/06/2022,Clinical&Medical-Voluntary Sector,HOSPICES,WILLEN HOSPICE,41219068,92171.58,Hospice Services
Department of Health,"NHS Beds, Luton & Mk CCG",30/06/2022,Clinical&Medical-Voluntary Sector,HOSPICES,WILLEN HOSPICE,41219076,92171.58,Hospice Services
Department of Health,"NHS Beds, Luton & Mk CCG",30/06/2022,Non-NHS trade Payables <1Yr Other WGA,BALANCE SHEET,SUPPLY CHAIN COORDINATION LIMITED,41219360,30322.97,Catalogue Products
Department of Health,"NHS Beds, Luton & Mk CCG",30/06/2022,Clinical&Medical-Othe Public Sector,SAFEGUARDING,BEDFORD BOROUGH COUNCIL,41219494,-62633.00,Funding for Safeguarding Children Board
Department of Health,"NHS Beds, Luton & Mk CCG",30/06/2022,Clinical&Medical-Independent Sector,CARERS,HC ONE LTD,41219900,25054.20,Care Fees
Department of Health,"NHS Beds, Luton & Mk CCG",30/06/2022,CLINICAL AND MEDICAL GOODS & SERVICES - HOSPITAL DISCHARGE PROGRAMME,CARERS,SHAROOT LTD,41220044,40300.00,Care Fees
Department of Health,"NHS Beds, Luton & Mk CCG",30/06/2022,Clinical&Medical-Othe Public Sector,LEARNING DIFFICULTIES,MILTON KEYNES COUNCIL,41232627,40324.29,Care Fees
Department of Health,"NHS Beds, Luton & Mk CCG",30/06/2022,Clinical&Medical-Othe Public Sector,LEARNING DIFFICULTIES,MILTON KEYNES COUNCIL,41232645,35016.79,Care Fees
Department of Health,"NHS Beds, Luton & Mk CCG",30/06/2022,Clinical&Medical-Independent Sector,MENTAL HEALTH SERVICES - SPECIALIST SERVICES,RECLAIM LIFE,41232946,30000.00,Care Fees
Department of Health,"NHS Beds, Luton & Mk CCG",30/06/2022,Clinical&Medical-Independent Sector,COMMISSIONING - NON ACUTE,CONNECT HEALTH LTD,41233080,119498.25,Physiotherapy Service
Department of Health,"NHS Beds, Luton & Mk CCG",30/06/2022,Clinical&Medical-Independent Sector,COMMISSIONING - NON ACUTE,WHADDON MEDICAL CENTRE,41233162,31054.00,Community Cardiology Service Contract
Department of Health,"NHS Beds, Luton & Mk CCG",30/06/2022,Clinical&Medical-Independent Sector,COMMISSIONING - NON ACUTE,WHADDON MEDICAL CENTRE,41233166,50928.00,Community Cardiology Service Contract
Department of Health,"NHS Beds, Luton & Mk CCG",30/06/2022,Clinical&Medical-Independent Sector,PALLIATIVE CARE,RAVENSCROFT PHYSIOTHERAPY CENTRE,41233171,85000.00,Physiotherapy Services
Department of Health,"NHS Beds, Luton & Mk CCG",30/06/2022,Clinical&Medical-Independent Sector,COMMUNITY SERVICES,NEWPORT PAGNELL MEDICAL CENTRE,41233333,27942.50,Care Fees
Department of Health,"NHS Beds, Luton & Mk CCG",30/06/2022,Clinical&Medical-Independent Sector,REABLEMENT,B WELL HEALTH & SOCIAL CARE GROUP LTD,41233363,29796.25,Falls Prevention Service
Department of Health,"NHS Beds, Luton & Mk CCG",30/06/2022,C&M-APMS Contract Value,PRC DELEGATED CO-COMMISSIONING,ONEPRIMARYCARE LLP GP,41241261,54901.88,GP Services
Department of Health,"NHS Beds, Luton & Mk CCG",30/06/2022,C&M-APMS Contract Value,PRC DELEGATED CO-COMMISSIONING,KEY MEDICAL SERVICES LTD,41241263,32273.88,GP Services
Department of Health,"NHS Beds, Luton & Mk CCG",30/06/2022,C&M-APMS Contract Value,PRC DELEGATED CO-COMMISSIONING,PRACTICE SURGERIES LTD,41241265,64331.22,GP Services
Department of Health,"NHS Beds, Luton & Mk CCG",30/06/2022,C&M-PMS Contract Value,PRC DELEGATED CO-COMMISSIONING,MKGP PLUS LTD (GP),41241269,48901.67,GP Services
Department of Health,"NHS Beds, Luton & Mk CCG",30/06/2022,C&M-APMS Contract Value,PRC DELEGATED CO-COMMISSIONING,EAST LONDON NHS FOUNDATION TRUST (CAULDWELL MEDICAL PRACTICE),41241271,71762.28,GP Services
Department of Health,"NHS Beds, Luton & Mk CCG",30/06/2022,C&M-APMS Contract Value,PRC DELEGATED CO-COMMISSIONING,PRACTICE SURGERIES LTD,41241273,138003.86,GP Services
Department of Health,"NHS Beds, Luton & Mk CCG",30/06/2022,C&M-APMS Contract Value,PRC DELEGATED CO-COMMISSIONING,HERTS URGENT CARE,41241276,128441.65,GP Services
Department of Health,"NHS Beds, Luton & Mk CCG",30/06/2022,Clinical&Medical-Independent Sector,LEARNING DIFFICULTIES,PRECIOUS HOMES LTD,41250383,38425.12,Care Fees
Department of Health,"NHS Beds, Luton & Mk CCG",30/06/2022,Clinical&Medical-Independent Sector,LEARNING DIFFICULTIES,ELYSIUM HEALTHCARE LTD,41250393,35847.29,Care Fees
Department of Health,"NHS Beds, Luton & Mk CCG",30/06/2022,Clinical&Medical-Independent Sector,MENTAL HEALTH SERVICES - S117 MENTAL HEALTH,SYMBIOSIS CARE LTD,41250398,32268.34,Care Fees
Department of Health,"NHS Beds, Luton & Mk CCG",30/06/2022,Clinical&Medical-Independent Sector,LEARNING DIFFICULTIES - S117,SYMBIOSIS CARE LTD,41250407,29611.20,Care Fees
Department of Health,"NHS Beds, Luton & Mk CCG",30/06/2022,Clinical&Medical-Independent Sector,LEARNING DIFFICULTIES,CARE SUPPORT MK LTD,41250412,25784.34,Care Fees
Department of Health,"NHS Beds, Luton & Mk CCG",30/06/2022,Clinical&Medical-Independent Sector,LEARNING DIFFICULTIES - S117,HAVILAH CARE LTD,41250419,25552.86,Care Fees
Department of Health,"NHS Beds, Luton & Mk CCG",30/06/2022,C&M-APMS Contract Value,PRC DELEGATED CO-COMMISSIONING,PRACTICE SURGERIES LTD,41265490,54040.58,GP Services
Department of Health,"NHS Beds, Luton & Mk CCG",30/06/2022,C&M-APMS Contract Value,PRC DELEGATED CO-COMMISSIONING,PRACTICE SURGERIES LTD,41265492,102564.00,GP Services
Department of Health,"NHS Beds, Luton & Mk CCG",30/06/2022,C&M-APMS Contract Value,PRC DELEGATED CO-COMMISSIONING,PUTNOE MEDICAL CENTRE PARTNERSHIP,41265494,161937.21,GP Services
Department of Health,"NHS Beds, Luton & Mk CCG",30/06/2022,C&M-APMS Contract Value,PRC DELEGATED CO-COMMISSIONING,SHORTSTOWN SURGERY,41265495,33121.31,GP Services
Department of Health,"NHS Beds, Luton & Mk CCG",30/06/2022,Clinical&Medical-Independent Sector,ACUTE COMMISSIONING,CIRCLE HEALTH GROUP LTD,41274436,-99113.57,Independent Sector Healthcare Contract
Department of Health,"NHS Beds, Luton & Mk CCG",30/06/2022,Clinical&Medical-Independent Sector,ACUTE COMMISSIONING,CIRCLE HEALTH GROUP LTD,41274439,45943.78,Independent Sector Healthcare Contract
Department of Health,"NHS Beds, Luton & Mk CCG",30/06/2022,Computer Software/License,HUMAN RESOURCES,PEPPY HEALTH LTD,41274459,27000.00,Menopause Nurse
Department of Health,"NHS Beds, Luton & Mk CCG",30/06/2022,Income tax <1Yr,BALANCE SHEET,HMRC,41307377,247283.88,Tax and NI
Department of Health,"NHS Beds, Luton & Mk CCG",30/06/2022,National Insurance < 1 yr-NI- ERS,BALANCE SHEET,HMRC,41307377,190378.79,Tax and NI
Department of Health,"NHS Beds, Luton & Mk CCG",30/06/2022,National Insurance < 1 yr-NI-EES,BALANCE SHEET,HMRC,41307377,134194.97,Tax and NI
Department of Health,"NHS Beds, Luton & Mk CCG",30/06/2022,Clinical&Medical-Independent Sector,MENTAL HEALTH SERVICES - OTHER,PSYCHIATRY UK LLP,41309279,75755.80,Medical Assessment
Department of Health,"NHS Beds, Luton & Mk CCG",30/06/2022,"Books, Journals & Subscr",CEO/ BOARD OFFICE,NHS CONFEDERATION,41309301,29000.00,Annual Membership
Department of Health,"NHS Beds, Luton & Mk CCG",30/06/2022,Clinical&Medical-Independent Sector,GP FORWARD VIEW,DHU HEALTH CARE CIC,41309340,348249.73,GP Services
Department of Health,"NHS Beds, Luton & Mk CCG",30/06/2022,Training Expenses,GP FORWARD VIEW,WOOTTON VALE HEALTHY LIVING CENTRE,41309351,29501.84,GP Services
Department of Health,"NHS Beds, Luton & Mk CCG",30/06/2022,Professional Fees,PROGRAMME PROJECTS,ATTAIN HEALTH MANAGEMENT SERVICES LTD,41309383,32282.78,Procurement Services
Department of Health,"NHS Beds, Luton & Mk CCG",30/06/2022,Clinical&Medical-Independent Sector,ACUTE COMMISSIONING,RAMSAY HEALTH CARE UK T/A BLAKELANDS HOSPITAL,41309569,248762.08,Independent Sector Healthcare Contract
Department of Health,"NHS Beds, Luton & Mk CCG",30/06/2022,Clinical&Medical-Independent Sector,ACUTE COMMISSIONING,HORTON HOSPITAL,41309584,95504.42,Independent Sector Healthcare Contract
Department of Health,"NHS Beds, Luton & Mk CCG",30/06/2022,Clinical&Medical-Independent Sector,ACUTE COMMISSIONING,PINEHILL HOSPITAL,41309601,-297712.22,Independent Sector Healthcare Contract
Department of Health,"NHS Beds, Luton & Mk CCG",30/06/2022,Clinical&Medical-Independent Sector,ACUTE COMMISSIONING,SPAMEDICA LTD,41309617,258477.00,Independent Sector Healthcare Contract
Department of Health,"NHS Beds, Luton & Mk CCG",30/06/2022,Clinical&Medical-Independent Sector,ACUTE COMMISSIONING,SPIRE HEALTHCARE LTD,41309731,184411.42,Independent Sector Healthcare Contract
Department of Health,"NHS Beds, Luton & Mk CCG",30/06/2022,Clinical&Medical-Independent Sector,MATERNITY SERVICES,BRITISH PREGNANCY ADVISORY SERVICE,41310025,64359.05,Pregnancy Advisory Service
Department of Health,"NHS Beds, Luton & Mk CCG",30/06/2022,Cont Care-Learning Disab(<65),CHC AD FULL FUND PERS HLTH BUD,WILLOW CARE & SUPPORT LTD,41315880,35928.00,Personal health budget
Department of Health,"NHS Beds, Luton & Mk CCG",30/06/2022,Cont Care-Learning Disab(<65),CHC AD FULL FUND PERS HLTH BUD,CHILTERN HEALTHCARE,41315883,35712.00,Personal health budget
Department of Health,"NHS Beds, Luton & Mk CCG",30/06/2022,Cont Care-Learning Disab(<65),CHC ADULT FULLY FUNDED,PATERSON GROUP (HEALTHCARE),41315887,33232.62,Care Fees
Department of Health,"NHS Beds, Luton & Mk CCG",30/06/2022,Cont Care-Learning Disab(<65),CHC ADULT FULLY FUNDED,ALDERWOOD LLA LTD,41315890,27425.44,Care Fees
Department of Health,"NHS Beds, Luton & Mk CCG",30/06/2022,Cont Care-Learning Disab(<65),CHC ADULT FULLY FUNDED,ALDERWOOD LLA LTD,41315895,25198.11,Care Fees
Department of Health,"NHS Beds, Luton & Mk CCG",30/06/2022,Hcare Srv Rec NHS Trust-Contract Baseline,ACUTE COMMISSIONING,BARTS HEALTH NHS TRUST,41317104,46191.00,NHS Healthcare Contract
Department of Health,"NHS Beds, Luton & Mk CCG",30/06/2022,Hcare Srv Rec Fdtn Trust-Contract Baseline,ACUTE COMMISSIONING,BEDFORDSHIRE HOSPITAL FOUNDATION TRUST,41317105,42921141.05,NHS Healthcare Contract
Department of Health,"NHS Beds, Luton & Mk CCG",30/06/2022,Hcare Srv Rec Fdtn Trust-Contract Baseline,PRC DELEGATED CO-COMMISSIONING,BEDFORDSHIRE HOSPITAL FOUNDATION TRUST,41317106,208570.67,GP Services
Department of Health,"NHS Beds, Luton & Mk CCG",30/06/2022,Hcare Srv Rec Fdtn Trust-Contract Baseline,LONG TERM CONDITIONS,BEDFORDSHIRE HOSPITAL FOUNDATION TRUST,41317107,40011.25,NHS Healthcare Contract
Department of Health,"NHS Beds, Luton & Mk CCG",30/06/2022,Hcare Srv Rec Fdtn Trust-Contract Baseline,PALLIATIVE CARE,BEDFORDSHIRE HOSPITAL FOUNDATION TRUST,41317108,190212.42,NHS Healthcare Contract
Department of Health,"NHS Beds, Luton & Mk CCG",30/06/2022,Hcare Srv Rec Fdtn Trust-Contract Baseline,PATIENT TRANSPORT,BEDFORDSHIRE HOSPITAL FOUNDATION TRUST,41317109,33084.25,Patient Transport
Department of Health,"NHS Beds, Luton & Mk CCG",30/06/2022,Hcare Srv Rec Fdtn Trust-Contract Baseline,ACUTE COMMISSIONING,BEDFORDSHIRE HOSPITAL FOUNDATION TRUST,41317110,1269083.33,NHS Healthcare Contract
Department of Health,"NHS Beds, Luton & Mk CCG",30/06/2022,Hcare Srv Rec NHS Trust-Contract Baseline,ACUTE COMMISSIONING,BUCKINGHAMSHIRE HEALTHCARE NHS TRUST,41317111,881002.50,NHS Healthcare Contract
Department of Health,"NHS Beds, Luton & Mk CCG",30/06/2022,Hcare Srv Rec Fdtn Trust-Contract Baseline,ACUTE COMMISSIONING,CAMBRIDGE UNIVERSITY HOSPITALS NHS FOUNDATION TRUST,41317112,1310994.00,NHS Healthcare Contract
Department of Health,"NHS Beds, Luton & Mk CCG",30/06/2022,Hcare Srv Rec NHS Trust-Contract Baseline,PALLIATIVE CARE,CAMBRIDGESHIRE COMMUNITY SERVICES,41317113,2072802.72,NHS Healthcare Contract
Department of Health,"NHS Beds, Luton & Mk CCG",30/06/2022,Hcare Srv Rec Fdtn Trust-Contract Baseline,PALLIATIVE CARE,CENTRAL & NORTH WEST LONDON NHS FOUNDATION TRUST,41317114,1728525.52,NHS Healthcare Contract
Department of Health,"NHS Beds, Luton & Mk CCG",30/06/2022,Hcare Srv Rec Fdtn Trust-Contract Baseline,MENTAL HEALTH CONTRACTS,CENTRAL & NORTH WEST LONDON NHS FOUNDATION TRUST,41317117,3397337.02,NHS Healthcare Contract
Department of Health,"NHS Beds, Luton & Mk CCG",30/06/2022,Hcare Srv Rec NHS Trust-Contract Baseline,ACUTE COMMISSIONING,EAST AND NORTH HERTFORDSHIRE NHS TRUST,41317118,2975081.00,NHS Healthcare Contract
Department of Health,"NHS Beds, Luton & Mk CCG",30/06/2022,Hcare Srv Rec Fdtn Trust-Contract Baseline,PALLIATIVE CARE,EAST LONDON NHS FOUNDATION TRUST,41317119,3198658.58,NHS Healthcare Contract
Department of Health,"NHS Beds, Luton & Mk CCG",30/06/2022,Hcare Srv Rec Fdtn Trust-Contract Baseline,LONG TERM CONDITIONS,EAST LONDON NHS FOUNDATION TRUST,41317120,27842.50,NHS Healthcare Contract
Department of Health,"NHS Beds, Luton & Mk CCG",30/06/2022,Hcare Srv Rec Fdtn Trust-Contract Baseline,MENTAL HEALTH CONTRACTS,EAST LONDON NHS FOUNDATION TRUST,41317121,9365878.05,NHS Healthcare Contract
Department of Health,"NHS Beds, Luton & Mk CCG",30/06/2022,Hcare Srv Rec NHS Trust-Contract Baseline,AMBULANCE SERVICES,EAST OF ENGLAND AMBULANCE SERVICE NHS TRUST,41317122,2191732.48,NHS Healthcare Contract
Department of Health,"NHS Beds, Luton & Mk CCG",30/06/2022,Oth Travel Costs-Patient Transport,PATIENT TRANSPORT,EAST OF ENGLAND AMBULANCE SERVICE NHS TRUST,41317123,386938.32,Patient Transport
Department of Health,"NHS Beds, Luton & Mk CCG",30/06/2022,Hcare Srv Rec Fdtn Trust-Contract Baseline,ACUTE COMMISSIONING,GREAT ORMOND STREET HOSPITAL FOR CHILDREN NHS FOUNDATION TRUST,41317124,111498.50,NHS Healthcare Contract
Department of Health,"NHS Beds, Luton & Mk CCG",30/06/2022,Hcare Srv Rec Fdtn Trust-Contract Baseline,ACUTE COMMISSIONING,GUYS & ST THOMAS HOSPITAL NHS FOUNDATION TRUST,41317125,431635.00,NHS Healthcare Contract
Department of Health,"NHS Beds, Luton & Mk CCG",30/06/2022,Hcare Srv Rec NHS Trust-Contract Baseline,ACUTE COMMISSIONING,IMPERIAL COLLEGE HEALTHCARE NHS TRUST,41317126,153364.50,NHS Healthcare Contract
Department of Health,"NHS Beds, Luton & Mk CCG",30/06/2022,Hcare Srv Rec NHS Trust-Contract Baseline,ACUTE COMMISSIONING,LONDON NORTH WEST HEALTHCARE NHS TRUST,41317127,125511.50,NHS Healthcare Contract
Department of Health,"NHS Beds, Luton & Mk CCG",30/06/2022,Hcare Srv Rec Fdtn Trust-Contract Baseline,ACUTE COMMISSIONING,MILTON KEYNES HOSPITAL NHS FOUNDATION TRUST,41317128,19542072.41,NHS Healthcare Contract
Department of Health,"NHS Beds, Luton & Mk CCG",30/06/2022,Hcare Srv Rec Fdtn Trust-Contract Baseline,ACUTE COMMISSIONING,MILTON KEYNES HOSPITAL NHS FOUNDATION TRUST,41317129,615083.33,NHS Healthcare Contract
Department of Health,"NHS Beds, Luton & Mk CCG",30/06/2022,Hcare Srv Rec Fdtn Trust-Contract Baseline,ACUTE COMMISSIONING,MOORFIELDS EYE HOSPITAL NHS FOUNDATION TRUST,41317130,137535.00,NHS Healthcare Contract
Department of Health,"NHS Beds, Luton & Mk CCG",30/06/2022,Hcare Srv Rec Fdtn Trust-Contract Baseline,ACUTE COMMISSIONING,NORTH WEST ANGLIA NHS FOUNDATION TRUST,41317131,101205.00,NHS Healthcare Contract
Department of Health,"NHS Beds, Luton & Mk CCG",30/06/2022,Hcare Srv Rec NHS Trust-Contract Baseline,ACUTE COMMISSIONING,NORTHAMPTON GENERAL HOSPITAL NHS TRUST,41317132,259500.00,NHS Healthcare Contract
Department of Health,"NHS Beds, Luton & Mk CCG",30/06/2022,Hcare Srv Rec Fdtn Trust-Contract Baseline,ACUTE COMMISSIONING,OXFORD UNIVERSITY HOSPITALS NHS FOUNDATION TRUST,41317133,807391.00,NHS Healthcare Contract
Department of Health,"NHS Beds, Luton & Mk CCG",30/06/2022,Hcare Srv Rec Fdtn Trust-Contract Baseline,ACUTE COMMISSIONING,ROYAL FREE LONDON NHS FOUNDATION TRUST,41317134,238048.00,NHS Healthcare Contract
Department of Health,"NHS Beds, Luton & Mk CCG",30/06/2022,Hcare Srv Rec NHS Trust-Contract Baseline,ACUTE COMMISSIONING,ROYAL NATIONAL ORTHOPAEDIC HOSPITAL NHS TRUST,41317135,220315.50,NHS Healthcare Contract
Department of Health,"NHS Beds, Luton & Mk CCG",30/06/2022,Hcare Srv Rec Fdtn Trust-Contract Baseline,ACUTE COMMISSIONING,ROYAL PAPWORTH HOSPITAL NHS FOUNDATION TRUST,41317136,228273.50,NHS Healthcare Contract
Department of Health,"NHS Beds, Luton & Mk CCG",30/06/2022,Hcare Srv Rec Fdtn Trust-Contract Baseline,AMBULANCE SERVICES,SOUTH CENTRAL AMBULANCE SERVICE NHS FOUNDATION TRUST,41317137,986198.30,NHS Healthcare Contract
Department of Health,"NHS Beds, Luton & Mk CCG",30/06/2022,Oth Travel Costs-Patient Transport,PATIENT TRANSPORT,SOUTH CENTRAL AMBULANCE SERVICE NHS FOUNDATION TRUST,41317138,257979.46,Patient Transport
Department of Health,"NHS Beds, Luton & Mk CCG",30/06/2022,Hcare Srv Rec Fdtn Trust-Contract Baseline,ACUTE COMMISSIONING,UNIVERSITY COLLEGE LONDON HOSPITALS NHS FOUNDATION TRUST,41317139,484832.50,NHS Healthcare Contract
Department of Health,"NHS Beds, Luton & Mk CCG",30/06/2022,Hcare Srv Rec NHS Trust-Contract Baseline,ACUTE COMMISSIONING,WEST HERTFORDSHIRE HOSPITALS NHS TRUST,41317140,252666.50,NHS Healthcare Contract
Department of Health,"NHS Beds, Luton & Mk CCG",30/06/2022,Clinical&Medical-Independent Sector,MATERNITY SERVICES,BRITISH PREGNANCY ADVISORY SERVICE,41333293,111055.00,Pregnancy Advisory Service
Department of Health,"NHS Beds, Luton & Mk CCG",30/06/2022,Clinical&Medical-Independent Sector,CARERS,HC ONE LTD,41333328,63629.71,Care Fees
Department of Health,"NHS Beds, Luton & Mk CCG",30/06/2022,VAT Cont Out Serv Input Tax <1Yr,BALANCE SHEET,PRECIOUS HOMES CARE SERVICES LTD,41333347,118551.68,Care Fees
Department of Health,"NHS Beds, Luton & Mk CCG",30/06/2022,VAT Cont Out Serv Input Tax <1Yr,BALANCE SHEET,PRECIOUS HOMES CARE SERVICES LTD,41333361,116725.61,Care Fees
Department of Health,"NHS Beds, Luton & Mk CCG",30/06/2022,Clinical&Medical-Independent Sector,WHEELCHAIR SERVICE,AJ MOBILITY LTD,41333450,74252.70,Wheelchair Service Supply
Department of Health,"NHS Beds, Luton & Mk CCG",30/06/2022,Clinical&Medical-Independent Sector,CARERS,CASTLEMEAD COURT CARE CENTRE LTD,41333604,39525.00,Care Fees
Department of Health,"NHS Beds, Luton & Mk CCG",30/06/2022,Clinical&Medical-Othe Public Sector,MENTAL HEALTH SERVICES - S117 MENTAL HEALTH,LUTON BOROUGH COUNCIL,41352704,1153912.00,Care Fees
Department of Health,"NHS Beds, Luton & Mk CCG",30/06/2022,Clinical&Medical-Othe Public Sector,MENTAL HEALTH SERVICES - S117 MENTAL HEALTH,LUTON BOROUGH COUNCIL,41352711,402998.00,Care Fees
Department of Health,"NHS Beds, Luton & Mk CCG",30/06/2022,Clinical&Medical-Othe Public Sector,MENTAL HEALTH SERVICES - S117 MENTAL HEALTH,LUTON BOROUGH COUNCIL,41352816,366222.00,Care Fees
Department of Health,"NHS Beds, Luton & Mk CCG",30/06/2022,Clinical&Medical-Commercial Sector,NCAS/OATS,CIRCLE HEALTH GROUP LTD,41352827,44056.88,Out of Area Treatment
Department of Health,"NHS Beds, Luton & Mk CCG",30/06/2022,Clinical&Medical-Commercial Sector,NCAS/OATS,SPIRE HEALTHCARE LTD,41352834,27926.61,Out of Area Treatment
Department of Health,"NHS Beds, Luton & Mk CCG",30/06/2022,Clinical&Medical-Commercial Sector,NCAS/OATS,SPIRE HEALTHCARE LTD,41352975,26139.98,Out of Area Treatment
Department of Health,"NHS Beds, Luton & Mk CCG",30/06/2022,Clinical&Medical-Independent Sector,ACUTE COMMISSIONING,SPIRE HEALTHCARE LTD,41353092,184411.42,Independent Sector Healthcare Contract
Department of Health,"NHS Beds, Luton & Mk CCG",30/06/2022,Clinical&Medical-Independent Sector,ACUTE COMMISSIONING,PINEHILL HOSPITAL,41353186,-384869.83,Independent Sector Healthcare Contract
Department of Health,"NHS Beds, Luton & Mk CCG",30/06/2022,C&M-GMS Global Sum,PRC DELEGATED CO-COMMISSIONING,WHADDON HEALTHCARE,41364858,162776.11,GP Services
Department of Health,"NHS Beds, Luton & Mk CCG",30/06/2022,C&M-GMS Global Sum,PRC DELEGATED CO-COMMISSIONING,FISHERMEAD MEDICAL CENTRE,41364861,52395.60,GP Services
Department of Health,"NHS Beds, Luton & Mk CCG",30/06/2022,C&M-GMS Global Sum,PRC DELEGATED CO-COMMISSIONING,WOLVERTON HEALTH CENTRE,41364864,113662.48,GP Services
Department of Health,"NHS Beds, Luton & Mk CCG",30/06/2022,C&M-GMS Global Sum,PRC DELEGATED CO-COMMISSIONING,MILTON KEYNES VILLAGE PRACTICE,41364870,99553.94,GP Services
Department of Health,"NHS Beds, Luton & Mk CCG",30/06/2022,C&M-GMS Global Sum,PRC DELEGATED CO-COMMISSIONING,BEDFORD STREET SURGERY,41364877,105237.41,GP Services
Department of Health,"NHS Beds, Luton & Mk CCG",30/06/2022,C&M-GMS Global Sum,PRC DELEGATED CO-COMMISSIONING,ASHFIELD MEDICAL CENTRE MILTON KEYNES,41364880,91729.86,GP Services
Department of Health,"NHS Beds, Luton & Mk CCG",30/06/2022,C&M-GMS Global Sum,PRC DELEGATED CO-COMMISSIONING,OAKRIDGE PARK MEDICAL CENTRE,41364883,84039.05,GP Services
Department of Health,"NHS Beds, Luton & Mk CCG",30/06/2022,C&M-GMS Global Sum,PRC DELEGATED CO-COMMISSIONING,COBBS GARDEN SURGERY,41364888,66629.56,GP Services
Department of Health,"NHS Beds, Luton & Mk CCG",30/06/2022,C&M-GMS Global Sum,PRC DELEGATED CO-COMMISSIONING,SOVEREIGN MEDICAL CENTRE,41364895,89244.99,GP Services
Department of Health,"NHS Beds, Luton & Mk CCG",30/06/2022,C&M-GMS Global Sum,PRC DELEGATED CO-COMMISSIONING,WATLING VALE MEDICAL CENTRE,41364898,79016.74,GP Services
Department of Health,"NHS Beds, Luton & Mk CCG",30/06/2022,C&M-GMS Global Sum,PRC DELEGATED CO-COMMISSIONING,RED HOUSE SURGERY,41364901,112803.24,GP Services
Department of Health,"NHS Beds, Luton & Mk CCG",30/06/2022,C&M-PMS Contract Value,PRC DELEGATED CO-COMMISSIONING,NHS ENGLAND,41368001,-32099.35,GP Services
Department of Health,"NHS Beds, Luton & Mk CCG",30/06/2022,C&M-GMS Global Sum,PRC DELEGATED CO-COMMISSIONING,HILLTOPS MEDICAL CENTRE,41377496,111616.06,GP Services
Department of Health,"NHS Beds, Luton & Mk CCG",30/06/2022,C&M-GMS Global Sum,PRC DELEGATED CO-COMMISSIONING,NEWPORT PAGNELL MEDICAL CENTRE,41377502,167368.76,GP Services
Department of Health,"NHS Beds, Luton & Mk CCG",30/06/2022,C&M-WAF Locum/digital booking,PRC DELEGATED CO-COMMISSIONING,NEWPORT PAGNELL MEDICAL CENTRE,41377502,26054.24,GP Services
Department of Health,"NHS Beds, Luton & Mk CCG",30/06/2022,C&M-GMS Global Sum,PRC DELEGATED CO-COMMISSIONING,PURBECK HEALTH CENTRE,41377510,46711.96,GP Services
Department of Health,"NHS Beds, Luton & Mk CCG",30/06/2022,C&M-GMS Global Sum,PRC DELEGATED CO-COMMISSIONING,PARKSIDE MEDICAL CENTRE,41377513,81742.44,GP Services
Department of Health,"NHS Beds, Luton & Mk CCG",30/06/2022,C&M-GMS PCO Locum Adop/Pat/Mat,PRC DELEGATED CO-COMMISSIONING,PARKSIDE MEDICAL CENTRE,41377513,42030.88,GP Services
Department of Health,"NHS Beds, Luton & Mk CCG",30/06/2022,C&M-GMS Prem Clinical Waste,PRC DELEGATED CO-COMMISSIONING,PARKSIDE MEDICAL CENTRE,41377513,25640.61,GP Services
Department of Health,"NHS Beds, Luton & Mk CCG",30/06/2022,C&M-GMS Global Sum,PRC DELEGATED CO-COMMISSIONING,STONY MEDICAL CENTRE,41377517,93627.62,GP Services
Department of Health,"NHS Beds, Luton & Mk CCG",30/06/2022,C&M-GMS Global Sum,PRC DELEGATED CO-COMMISSIONING,GROVE SURGERY,41377526,67446.13,GP Services
Department of Health,"NHS Beds, Luton & Mk CCG",30/06/2022,C&M-GMS Global Sum,PRC DELEGATED CO-COMMISSIONING,CMK MEDICAL CENTRE,41377530,135612.39,GP Services
Department of Health,"NHS Beds, Luton & Mk CCG",30/06/2022,C&M-GMS Global Sum,PRC DELEGATED CO-COMMISSIONING,STONEDEAN PRACTICE,41377536,58043.11,GP Services
Department of Health,"NHS Beds, Luton & Mk CCG",30/06/2022,C&M-GMS Global Sum,PRC DELEGATED CO-COMMISSIONING,WESTCROFT HEALTH CENTRE,41377537,89335.03,GP Services
Department of Health,"NHS Beds, Luton & Mk CCG",30/06/2022,C&M-GMS Global Sum,PRC DELEGATED CO-COMMISSIONING,WESTFIELD ROAD SURGERY,41377538,61478.31,GP Services
Department of Health,"NHS Beds, Luton & Mk CCG",30/06/2022,C&M-GMS Global Sum,PRC DELEGATED CO-COMMISSIONING,WALNUT TREE HEALTH CENTRE,41377539,75905.12,GP Services
Department of Health,"NHS Beds, Luton & Mk CCG",30/06/2022,Clinical&Medical-Independent Sector,COMMISSIONING - NON ACUTE,CONSULTANT CONNECT LTD,41388826,108000.00,Clinician IT Service
Department of Health,"NHS Beds, Luton & Mk CCG",30/06/2022,Cont Care- Prior Year Payments,CHC ADULT FULLY FUNDED,CARE SUPPORT MK LTD,41388850,34343.71,Care Fees
Department of Health,"NHS Beds, Luton & Mk CCG",30/06/2022,CLINICAL AND MEDICAL GOODS & SERVICES - HOSPITAL DISCHARGE PROGRAMME,CARERS,PRESSBEAU LTD,41388993,69750.00,Care Fees
Department of Health,"NHS Beds, Luton & Mk CCG",30/06/2022,Clinical&Medical-Independent Sector,CARERS,PARKLANDS NURSING HOME,41389115,58751.96,Care Fees
Department of Health,"NHS Beds, Luton & Mk CCG",30/06/2022,CLINICAL AND MEDICAL GOODS & SERVICES - HOSPITAL DISCHARGE PROGRAMME,CARERS,BONDCARE,41389732,41785.71,Care Fees
Department of Health,"NHS Beds, Luton & Mk CCG",30/06/2022,Clinical&Medical-Independent Sector,GP FORWARD VIEW,NHS NORTH EAST ESSEX CCG,41389764,48387.70,GP Services
Department of Health,"NHS Beds, Luton & Mk CCG",30/06/2022,Cont Care-Physical Disab (<65),CHC ADULT FULLY FUNDED,ROYAL BUCKINGHAMSHIRE HOSPITAL,41408506,59785.71,Care Fees
Department of Health,"NHS Beds, Luton & Mk CCG",30/06/2022,Cont Care-Physical Disab (<65),CHC ADULT FULLY FUNDED,BESPOKE HEALTH & SOCIAL CARE LTD,41408509,43755.88,Care Fees
Department of Health,"NHS Beds, Luton & Mk CCG",30/06/2022,Rent,OUT OF HOURS,MILTON KEYNES URGENT CARE SERVICES,41422023,30599.30,Service Charge
Department of Health,"NHS Beds, Luton & Mk CCG",30/06/2022,Clinical&Medical-Independent Sector,OUT OF HOURS,PUTNOE MEDICAL CENTRE PARTNERSHIP,41422031,102581.33,GP Services
Department of Health,"NHS Beds, Luton & Mk CCG",30/06/2022,Clinical&Medical-Independent Sector,GP FORWARD VIEW,EVEXIA HEALTH LTD,41422064,45817.00,GP Services
Department of Health,"NHS Beds, Luton & Mk CCG",30/06/2022,Clinical&Medical-Independent Sector,GP FORWARD VIEW,EVEXIA HEALTH LTD,41422071,45817.00,GP Services
Department of Health,"NHS Beds, Luton & Mk CCG",30/06/2022,Clinical&Medical-Independent Sector,NHS 111,DHU 111 (EAST MIDLANDS) CIC,41422078,74402.52,GP Services
Department of Health,"NHS Beds, Luton & Mk CCG",30/06/2022,Clinical&Medical-Independent Sector,NHS 111,DHU 111 (EAST MIDLANDS) CIC,41422082,74402.52,GP Services
Department of Health,"NHS Beds, Luton & Mk CCG",30/06/2022,Clinical&Medical-Independent Sector,GP FORWARD VIEW,BEDFORD ON CALL,41422093,158964.64,GP Services
Department of Health,"NHS Beds, Luton & Mk CCG",30/06/2022,Clinical&Medical-Independent Sector,OUT OF HOURS,HERTS URGENT CARE,41422100,56738.40,GP Services
Department of Health,"NHS Beds, Luton & Mk CCG",30/06/2022,Charges from CSU,PROGRAMME PROJECTS,NHS ARDEN AND GEM CSU,41422133,134461.67,Commissioning Support Unit Contract
Department of Health,"NHS Beds, Luton & Mk CCG",30/06/2022,Clinical&Medical-Independent Sector,GP FORWARD VIEW,MILTON KEYNES URGENT CARE SERVICES,41422146,43631.03,GP Services
Department of Health,"NHS Beds, Luton & Mk CCG",30/06/2022,Clinical&Medical-Independent Sector,COMMISSIONING SCHEMES,DHU HEALTH CARE CIC,41422206,83580.00,Integrated Urgent Care Contract
Department of Health,"NHS Beds, Luton & Mk CCG",30/06/2022,Clinical&Medical-Independent Sector,GP FORWARD VIEW,BEDFORD ON CALL,41422257,158564.64,GP Services
Department of Health,"NHS Beds, Luton & Mk CCG",30/06/2022,Clinical&Medical-Independent Sector,ACUTE COMMISSIONING,PINEHILL HOSPITAL,41422262,209927.00,Independent Sector Healthcare Contract
Department of Health,"NHS Beds, Luton & Mk CCG",30/06/2022,Clinical&Medical-Independent Sector,ACUTE COMMISSIONING,PINEHILL HOSPITAL,41422264,192711.00,Independent Sector Healthcare Contract
Department of Health,"NHS Beds, Luton & Mk CCG",30/06/2022,Cont Care-Physical Disab (65+),CONTINUING HEALTHCARE ASSESSMENT & SUPPORT,TERENCE TOPPING,41434492,85907.82,Care Fees
Department of Health,"NHS Beds, Luton & Mk CCG",30/06/2022,C&M-GMS Global Sum,PRC DELEGATED CO-COMMISSIONING,QUEENS PARK SURGERY,41434493,55144.95,GP Services
Department of Health,"NHS Beds, Luton & Mk CCG",30/06/2022,Telecoms-Data lines,PRIMARY CARE IT,REDCENTRIC SOLUTIONS LTD,41441613,-71712.00,GP Services
Department of Health,"NHS Beds, Luton & Mk CCG",30/06/2022,Telecoms-Data lines,PRIMARY CARE IT,REDCENTRIC SOLUTIONS LTD,41441631,-53460.00,GP Services
Department of Health,"NHS Beds, Luton & Mk CCG",30/06/2022,Professional Fees,RECHARGES NHS PROPERTY SERVICES LTD,CENTRAL BEDFORDSHIRE COUNCIL,41446760,200000.00,West Mid Beds hub
Department of Health,"NHS Beds, Luton & Mk CCG",30/06/2022,Clinical&Medical-Independent Sector,LEARNING DIFFICULTIES - S117,ELYSIUM HEALTHCARE LTD,41454584,26244.29,Care Fees
Department of Health,"NHS Beds, Luton & Mk CCG",30/06/2022,Clinical&Medical-Independent Sector,LEARNING DIFFICULTIES - S117,ELYSIUM HEALTHCARE LTD,41454590,25397.70,Care Fees
Department of Health,"NHS Beds, Luton & Mk CCG",30/06/2022,Clinical&Medical-Independent Sector,LEARNING DIFFICULTIES - S117,GLENHOLME HEALTHCARE LTD,41454617,26150.85,Care Fees
Department of Health,"NHS Beds, Luton & Mk CCG",30/06/2022,Clinical&Medical-Independent Sector,LEARNING DIFFICULTIES - S117,LDA CARE LTD,41454653,58280.00,Care Fees
Department of Health,"NHS Beds, Luton & Mk CCG",30/06/2022,Clinical&Medical-Independent Sector,LEARNING DIFFICULTIES,PRECIOUS HOMES LTD,41454781,50409.41,Care Fees
Department of Health,"NHS Beds, Luton & Mk CCG",30/06/2022,Clinical&Medical-Independent Sector,MENTAL HEALTH SERVICES - S117 MENTAL HEALTH,SYMBIOSIS CARE LTD,41454827,61879.41,Care Fees
Department of Health,"NHS Beds, Luton & Mk CCG",30/06/2022,Clinical&Medical-Independent Sector,MENTAL HEALTH SERVICES - S117 MENTAL HEALTH,SYMBIOSIS CARE LTD,41454832,59883.30,Care Fees
Department of Health,"NHS Beds, Luton & Mk CCG",30/06/2022,CLINICAL AND MEDICAL GOODS & SERVICES - HOSPITAL DISCHARGE PROGRAMME,CARERS,BONDCARE LONDON,41459362,40714.29,Care Fees
Department of Health,"NHS Beds, Luton & Mk CCG",30/06/2022,CLINICAL AND MEDICAL GOODS & SERVICES - HOSPITAL DISCHARGE PROGRAMME,CARERS,BONDCARE LONDON,41459372,42071.43,Care Fees
Department of Health,"NHS Beds, Luton & Mk CCG",30/06/2022,CLINICAL AND MEDICAL GOODS & SERVICES - HOSPITAL DISCHARGE PROGRAMME,CARERS,BONDCARE LONDON,41459377,43178.57,Care Fees
Department of Health,"NHS Beds, Luton & Mk CCG",30/06/2022,Clinical&Medical-Independent Sector,ACUTE COMMISSIONING,CIRCLE HEALTH GROUP LTD,41475579,273782.63,Independent Sector Healthcare Contract
Department of Health,"NHS Beds, Luton & Mk CCG",30/06/2022,Clinical&Medical-Independent Sector,ACUTE COMMISSIONING,CIRCLE HEALTH GROUP LTD,41475603,169960.07,Independent Sector Healthcare Contract
Department of Health,"NHS Beds, Luton & Mk CCG",30/06/2022,Clinical&Medical-Voluntary Sector,HOSPICES,WILLEN HOSPICE,41475990,92171.58,Hospice Services
Department of Health,"NHS Beds, Luton & Mk CCG",30/06/2022,Clinical&Medical-Independent Sector,ACUTE COMMISSIONING,CIRCLE HEALTH GROUP LTD,41476029,169960.07,Independent Sector Healthcare Contract
Department of Health,"NHS Beds, Luton & Mk CCG",30/06/2022,Clinical&Medical-Independent Sector,ACUTE COMMISSIONING,CIRCLE HEALTH GROUP LTD,41476053,273782.63,Independent Sector Healthcare Contract
Department of Health,"NHS Beds, Luton & Mk CCG",30/06/2022,Clinical&Medical-Independent Sector,ACUTE COMMISSIONING,INHEALTH LTD,41476229,78335.69,Diagnostic Imaging
Department of Health,"NHS Beds, Luton & Mk CCG",30/06/2022,Cont Care-Learning Disab(<65),CHC ADULT FULLY FUNDED,HAVILAH CARE LTD,41476550,32583.50,Care Fees
Department of Health,"NHS Beds, Luton & Mk CCG",30/06/2022,C&M-GMS Global Sum,PRC DELEGATED CO-COMMISSIONING,WHEATFIELD SURGERY,41489341,99558.17,GP Services
Department of Health,"NHS Beds, Luton & Mk CCG",30/06/2022,C&M-GMS Global Sum,PRC DELEGATED CO-COMMISSIONING,FLITWICK SURGERY,41489343,105354.88,GP Services
Department of Health,"NHS Beds, Luton & Mk CCG",30/06/2022,C&M-GMS Global Sum,PRC DELEGATED CO-COMMISSIONING,GARDENIA & MARSH FARM PRACTICE,41489345,96701.72,GP Services
Department of Health,"NHS Beds, Luton & Mk CCG",30/06/2022,C&M-GMS Global Sum,PRC DELEGATED CO-COMMISSIONING,HEALTHY LIVING CENTRE,41489349,65275.78,GP Services
Department of Health,"NHS Beds, Luton & Mk CCG",30/06/2022,C&M-GMS Global Sum,PRC DELEGATED CO-COMMISSIONING,GT BARFORD SURGERY,41489351,45119.63,GP Services
Department of Health,"NHS Beds, Luton & Mk CCG",30/06/2022,C&M-GMS Global Sum,PRC DELEGATED CO-COMMISSIONING,IVEL MEDICAL CENTRE,41489353,106203.61,GP Services
Department of Health,"NHS Beds, Luton & Mk CCG",30/06/2022,C&M-GMS Global Sum,PRC DELEGATED CO-COMMISSIONING,HARROLD MEDICAL PRACTICE,41489355,55524.17,GP Services
Department of Health,"NHS Beds, Luton & Mk CCG",30/06/2022,C&M-GMS Global Sum,PRC DELEGATED CO-COMMISSIONING,GREENSANDS SURGERY,41489357,77244.17,GP Services
Department of Health,"NHS Beds, Luton & Mk CCG",30/06/2022,C&M-GMS Global Sum,PRC DELEGATED CO-COMMISSIONING,GREENSANDS MEDICAL PRACTICE,41489359,103937.47,GP Services
Department of Health,"NHS Beds, Luton & Mk CCG",30/06/2022,C&M-GMS Global Sum,PRC DELEGATED CO-COMMISSIONING,HOUGHTON CLOSE SURGERY,41489361,90682.79,GP Services
Department of Health,"NHS Beds, Luton & Mk CCG",30/06/2022,C&M-GMS Global Sum,PRC DELEGATED CO-COMMISSIONING,HOUGHTON REGIS MEDICAL CENTRE,41489363,89074.40,GP Services
Department of Health,"NHS Beds, Luton & Mk CCG",30/06/2022,C&M-GMS Global Sum,PRC DELEGATED CO-COMMISSIONING,KING STREET SURGERY BEDFORD,41489365,168052.82,GP Services
Department of Health,"NHS Beds, Luton & Mk CCG",30/06/2022,C&M-GMS Global Sum,PRC DELEGATED CO-COMMISSIONING,KINGSBURY COURT,41489367,75170.00,GP Services
Department of Health,"NHS Beds, Luton & Mk CCG",30/06/2022,C&M-GMS Global Sum,PRC DELEGATED CO-COMMISSIONING,NEVILLE ROAD SURGERY,41489369,27388.85,GP Services
Department of Health,"NHS Beds, Luton & Mk CCG",30/06/2022,C&M-GMS Global Sum,PRC DELEGATED CO-COMMISSIONING,LINDEN ROAD SURGERY,41489371,49462.98,GP Services
Department of Health,"NHS Beds, Luton & Mk CCG",30/06/2022,C&M-GMS Global Sum,PRC DELEGATED CO-COMMISSIONING,KIRBY ROAD MEDICAL PRACTICE,41489373,64162.33,GP Services
Department of Health,"NHS Beds, Luton & Mk CCG",30/06/2022,C&M-GMS Global Sum,PRC DELEGATED CO-COMMISSIONING,LISTER HOUSE SURGERY LUTON,41489375,46290.79,GP Services
Department of Health,"NHS Beds, Luton & Mk CCG",30/06/2022,C&M-GMS Global Sum,PRC DELEGATED CO-COMMISSIONING,DR KEDWARD & PARTNERS,41489377,151383.97,GP Services
Department of Health,"NHS Beds, Luton & Mk CCG",30/06/2022,C&M-GMS Global Sum,PRC DELEGATED CO-COMMISSIONING,LARKSFIELD SURGERY,41489378,105248.87,GP Services
Department of Health,"NHS Beds, Luton & Mk CCG",30/06/2022,C&M-GMS Global Sum,PRC DELEGATED CO-COMMISSIONING,MERSEY PLACE MEDICAL PRACTICE,41489381,216715.95,GP Services
Department of Health,"NHS Beds, Luton & Mk CCG",30/06/2022,C&M-GMS Global Sum,PRC DELEGATED CO-COMMISSIONING,LEIGHTON ROAD MEDICAL PRACTICE,41489383,137772.38,GP Services
Department of Health,"NHS Beds, Luton & Mk CCG",30/06/2022,C&M-GMS Global Sum,PRC DELEGATED CO-COMMISSIONING,PRIORY GARDENS MEDICAL PRACTICE,41489385,126824.40,GP Services
Department of Health,"NHS Beds, Luton & Mk CCG",30/06/2022,C&M-GMS Global Sum,PRC DELEGATED CO-COMMISSIONING,WHITE HORSE VALE,41489388,57762.55,GP Services
Department of Health,"NHS Beds, Luton & Mk CCG",30/06/2022,C&M-GMS Global Sum,PRC DELEGATED CO-COMMISSIONING,DR SS BASRA,41489390,25802.64,GP Services
Department of Health,"NHS Beds, Luton & Mk CCG",30/06/2022,C&M-GMS Global Sum,PRC DELEGATED CO-COMMISSIONING,SALISBURY HOUSE SURGERY,41489395,85987.01,GP Services
Department of Health,"NHS Beds, Luton & Mk CCG",30/06/2022,C&M-GMS Global Sum,PRC DELEGATED CO-COMMISSIONING,OLIVER STREET SURGERY,41489398,61890.52,GP Services
Department of Health,"NHS Beds, Luton & Mk CCG",30/06/2022,C&M-GMS Global Sum,PRC DELEGATED CO-COMMISSIONING,DR KM HEDGES & PARTNERS,41489400,53641.54,GP Services
Department of Health,"NHS Beds, Luton & Mk CCG",30/06/2022,C&M-GMS Global Sum,PRC DELEGATED CO-COMMISSIONING,CADDINGTON MEDICAL PRACTICE,41489404,47329.86,GP Services
Department of Health,"NHS Beds, Luton & Mk CCG",30/06/2022,C&M-GMS Global Sum,PRC DELEGATED CO-COMMISSIONING,STOPSLEY VILLAGE PRACTICE,41489406,70790.53,GP Services
Department of Health,"NHS Beds, Luton & Mk CCG",30/06/2022,C&M-GMS Global Sum,PRC DELEGATED CO-COMMISSIONING,CASTLE ST,41489408,122514.75,GP Services
Department of Health,"NHS Beds, Luton & Mk CCG",30/06/2022,C&M-GMS Global Sum,PRC DELEGATED CO-COMMISSIONING,SUNDON MEDICAL CENTRE,41489410,72222.38,GP Services
Department of Health,"NHS Beds, Luton & Mk CCG",30/06/2022,C&M-GMS Global Sum,PRC DELEGATED CO-COMMISSIONING,LEAGRAVE SURGERY,41489413,67194.13,GP Services
Department of Health,"NHS Beds, Luton & Mk CCG",30/06/2022,C&M-GMS Global Sum,PRC DELEGATED CO-COMMISSIONING,HOCKWELL RING MEDICAL PRACTICE,41489415,42742.06,GP Services
Department of Health,"NHS Beds, Luton & Mk CCG",30/06/2022,C&M-GMS Global Sum,PRC DELEGATED CO-COMMISSIONING,EASTGATE SURGERY,41489417,31892.95,GP Services
Department of Health,"NHS Beds, Luton & Mk CCG",30/06/2022,C&M-GMS Global Sum,PRC DELEGATED CO-COMMISSIONING,CONWAY MED CTRE,41489419,53075.20,GP Services
Department of Health,"NHS Beds, Luton & Mk CCG",30/06/2022,C&M-GMS Global Sum,PRC DELEGATED CO-COMMISSIONING,MALZEARD ROAD MEDICAL PRACTICE,41489422,70073.65,GP Services
Department of Health,"NHS Beds, Luton & Mk CCG",30/06/2022,C&M-GMS Global Sum,PRC DELEGATED CO-COMMISSIONING,DR COLLINS & CARRAGHER,41489424,49669.68,GP Services
Department of Health,"NHS Beds, Luton & Mk CCG",30/06/2022,C&M-GMS Global Sum,PRC DELEGATED CO-COMMISSIONING,DE PARYS GROUP,41489426,301210.51,GP Services
Department of Health,"NHS Beds, Luton & Mk CCG",30/06/2022,C&M-GMS QOF Aspiration,PRC DELEGATED CO-COMMISSIONING,DE PARYS GROUP,41489426,35870.82,GP Services
Department of Health,"NHS Beds, Luton & Mk CCG",30/06/2022,C&M-GMS Global Sum,PRC DELEGATED CO-COMMISSIONING,PASTURES WAY SURGERY,41489428,30195.91,GP Services
Department of Health,"NHS Beds, Luton & Mk CCG",30/06/2022,C&M-GMS Global Sum,PRC DELEGATED CO-COMMISSIONING,TODDINGTON MEDICAL CENTRE,41489430,61058.84,GP Services
Department of Health,"NHS Beds, Luton & Mk CCG",30/06/2022,C&M-GMS Global Sum,PRC DELEGATED CO-COMMISSIONING,ASHCROFT ROAD MEDICAL PRACTICE,41489432,33654.57,GP Services
Department of Health,"NHS Beds, Luton & Mk CCG",30/06/2022,C&M-GMS Global Sum,PRC DELEGATED CO-COMMISSIONING,BLENHEIM MEDICAL CENTRE,41489434,99187.99,GP Services
Department of Health,"NHS Beds, Luton & Mk CCG",30/06/2022,C&M-GMS Global Sum,PRC DELEGATED CO-COMMISSIONING,DR ME GLAZE & PARTNERS,41489436,94891.94,GP Services
Department of Health,"NHS Beds, Luton & Mk CCG",30/06/2022,C&M-GMS Global Sum,PRC DELEGATED CO-COMMISSIONING,BASSETT ROAD MEDICAL PRACTICE,41489441,142798.43,GP Services
Department of Health,"NHS Beds, Luton & Mk CCG",30/06/2022,C&M-GMS Global Sum,PRC DELEGATED CO-COMMISSIONING,WEST STREET SURGERY,41489444,94531.97,GP Services
Department of Health,"NHS Beds, Luton & Mk CCG",30/06/2022,Clinical&Medical-Voluntary Sector,HOSPICES,SUE RYDER CARE,41508059,48758.16,Hospice Services
Department of Health,"NHS Beds, Luton & Mk CCG",30/06/2022,Clinical&Medical-Commercial Sector,INTERMEDIATE CARE,DISABILITIES TRUST,41508177,-33471.43,Care Fees
Department of Health,"NHS Beds, Luton & Mk CCG",30/06/2022,Clinical&Medical-Independent Sector,CARERS,CASTLEMEAD COURT CARE CENTRE LTD,41508786,38250.00,Care Fees
Department of Health,"NHS Beds, Luton & Mk CCG",30/06/2022,C&M-GMS Global Sum,PRC DELEGATED CO-COMMISSIONING,DR P TATMAN & PARTNERS,41514595,122241.50,GP Services
Department of Health,"NHS Beds, Luton & Mk CCG",30/06/2022,C&M-GMS Global Sum,PRC DELEGATED CO-COMMISSIONING,LARKSIDE PRACTICE,41514598,69768.31,GP Services
Department of Health,"NHS Beds, Luton & Mk CCG",30/06/2022,C&M-GMS Global Sum,PRC DELEGATED CO-COMMISSIONING,PRIORY MEDICAL PRACTICE,41514599,61993.20,GP Services
Department of Health,"NHS Beds, Luton & Mk CCG",30/06/2022,C&M-GMS Global Sum,PRC DELEGATED CO-COMMISSIONING,QUEENS PARK SURGERY,41514600,87566.77,GP Services
Department of Health,"NHS Beds, Luton & Mk CCG",30/06/2022,C&M-GMS Global Sum,PRC DELEGATED CO-COMMISSIONING,BELL HOUSE MEDICAL PRACTICE,41514601,78594.61,GP Services
Department of Health,"NHS Beds, Luton & Mk CCG",30/06/2022,C&M-GMS Global Sum,PRC DELEGATED CO-COMMISSIONING,ASPLANDS MEDICAL CENTRE,41514602,103367.61,GP Services
Department of Health,"NHS Beds, Luton & Mk CCG",30/06/2022,C&M-GMS Global Sum,PRC DELEGATED CO-COMMISSIONING,SANDY HEALTH CENTRE,41514603,70784.39,GP Services
Department of Health,"NHS Beds, Luton & Mk CCG",30/06/2022,C&M-GMS Global Sum,PRC DELEGATED CO-COMMISSIONING,SHEFFORD HEALTH CENTRE,41514604,143438.62,GP Services
Department of Health,"NHS Beds, Luton & Mk CCG",30/06/2022,C&M-GMS Global Sum,PRC DELEGATED CO-COMMISSIONING,BUTE HOUSE MEDICAL PRACTICE,41514605,64973.85,GP Services
Department of Health,"NHS Beds, Luton & Mk CCG",30/06/2022,C&M-GMS PCN DES Clin Pharmacist,PRC DELEGATED CO-COMMISSIONING,BUTE HOUSE MEDICAL PRACTICE,41514605,26433.64,GP Services
Department of Health,"NHS Beds, Luton & Mk CCG",30/06/2022,C&M-GMS Global Sum,PRC DELEGATED CO-COMMISSIONING,DR IMRAN ISMAIL (E81043),41514607,82982.31,GP Services
Department of Health,"NHS Beds, Luton & Mk CCG",30/06/2022,C&M-GMS Global Sum,PRC DELEGATED CO-COMMISSIONING,SAFFRON HEALTH PARTNERSHIP,41514609,164402.71,GP Services
Department of Health,"NHS Beds, Luton & Mk CCG",30/06/2022,C&M-WAF Locum/digital booking,PRC DELEGATED CO-COMMISSIONING,SAFFRON HEALTH PARTNERSHIP,41514609,30211.90,GP Services
Department of Health,"NHS Beds, Luton & Mk CCG",30/06/2022,C&M-GMS Global Sum,PRC DELEGATED CO-COMMISSIONING,WOODLAND PRACTICE,41514612,87057.94,GP Services
Department of Health,"NHS Beds, Luton & Mk CCG",30/06/2022,C&M-GMS Global Sum,PRC DELEGATED CO-COMMISSIONING,MEDICI MEDICAL CENTRE,41514616,116610.91,GP Services
Department of Health,"NHS Beds, Luton & Mk CCG",30/06/2022,C&M-GMS Global Sum,PRC DELEGATED CO-COMMISSIONING,OAKLEY SURGERY,41514618,56301.19,GP Services
Department of Health,"NHS Beds, Luton & Mk CCG",30/06/2022,C&M-GMS Cost of Drugs -Dispensing,LOCAL ENHANCED SERVICES,GT BARFORD SURGERY,41522605,32573.44,GP Services
Department of Health,"NHS Beds, Luton & Mk CCG",30/06/2022,C&M-GMS Cost of Drugs -Dispensing,LOCAL ENHANCED SERVICES,HARROLD MEDICAL PRACTICE,41522609,54720.63,GP Services
Department of Health,"NHS Beds, Luton & Mk CCG",30/06/2022,C&M-GMS Cost of Drugs -Dispensing,LOCAL ENHANCED SERVICES,HOUGHTON CLOSE SURGERY,41522614,37151.69,GP Services
Department of Health,"NHS Beds, Luton & Mk CCG",30/06/2022,C&M-GMS Cost of Drugs -Dispensing,LOCAL ENHANCED SERVICES,ASPLANDS MEDICAL CENTRE,41522637,41491.11,GP Services
Department of Health,"NHS Beds, Luton & Mk CCG",30/06/2022,C&M-GMS Cost of Drugs -Dispensing,LOCAL ENHANCED SERVICES,DR KM HEDGES & PARTNERS,41522643,33783.41,GP Services
Department of Health,"NHS Beds, Luton & Mk CCG",30/06/2022,C&M-GMS Cost of Drugs -Dispensing,LOCAL ENHANCED SERVICES,DR ME GLAZE & PARTNERS,41522666,41741.55,GP Services
Department of Health,"NHS Beds, Luton & Mk CCG",30/06/2022,Cont Care-Physical Disab (<65),CHC ADULT FULLY FUNDED,FAIRLIE HEALTHCARE LTD,41523215,29368.25,Care Fees
Department of Health,"NHS Beds, Luton & Mk CCG",30/06/2022,Cont Care-Learning Disab(<65),CHC ADULT FULLY FUNDED,ALDERWOOD LLA LTD,41523216,28339.62,Care Fees
Department of Health,"NHS Beds, Luton & Mk CCG",30/06/2022,Cont Care-Learning Disab(<65),CHC ADULT FULLY FUNDED,ALDERWOOD LLA LTD,41523217,26038.05,Care Fees
Department of Health,"NHS Beds, Luton & Mk CCG",30/06/2022,Cont Care-Learning Disab(<65),CHC ADULT FULLY FUNDED,ALDERWOOD LLA LTD,41523218,25094.46,Care Fees
Department of Health,"NHS Beds, Luton & Mk CCG",30/06/2022,Cont Care-Learning Disab(<65),CHC AD FULL FUND PERS HLTH BUD,PROTEA CARE HOMES (KENT) LTD,41524950,26769.08,Personal health budget
Department of Health,"NHS Beds, Luton & Mk CCG",30/06/2022,Clinical&Medical-Independent Sector,COMMISSIONING SCHEMES,DHU HEALTH CARE CIC,41529466,265238.00,Integrated Urgent Care Contract
Department of Health,"NHS Beds, Luton & Mk CCG",30/06/2022,Clinical&Medical-Independent Sector,OUT OF HOURS,DHU HEALTH CARE CIC,41529466,83011.73,GP Services
Department of Health,"NHS Beds, Luton & Mk CCG",30/06/2022,Clinical&Medical-Independent Sector,NHS 111,HERTS URGENT CARE,41529483,951872.33,GP Services
Department of Health,"NHS Beds, Luton & Mk CCG",30/06/2022,Clinical&Medical-Independent Sector,ACUTE COMMISSIONING,CIRCLE HEALTH GROUP LTD,41529570,273782.63,Independent Sector Healthcare Contract
Department of Health,"NHS Beds, Luton & Mk CCG",30/06/2022,Clinical&Medical-Commercial Sector,MENTAL HEALTH CONTRACTS,TURNING POINT,41529635,377202.69,Independent Sector Healthcare Contract
Department of Health,"NHS Beds, Luton & Mk CCG",30/06/2022,Clinical&Medical-Independent Sector,MENTAL HEALTH CONTRACTS,TURNING POINT,41529650,377202.69,Independent Sector Healthcare Contract
Department of Health,"NHS Beds, Luton & Mk CCG",30/06/2022,Clinical&Medical-Independent Sector,MENTAL HEALTH CONTRACTS,TURNING POINT,41529666,377202.69,Independent Sector Healthcare Contract
Department of Health,"NHS Beds, Luton & Mk CCG",30/06/2022,C&M-GMS QOF Achievement,PRC DELEGATED CO-COMMISSIONING,WHADDON HEALTHCARE,41536492,57448.75,GP Services
Department of Health,"NHS Beds, Luton & Mk CCG",30/06/2022,C&M-GMS QOF Achievement,PRC DELEGATED CO-COMMISSIONING,WHEATFIELD SURGERY,41536494,27602.30,GP Services
Department of Health,"NHS Beds, Luton & Mk CCG",30/06/2022,C&M-GMS QOF Achievement,PRC DELEGATED CO-COMMISSIONING,FLITWICK SURGERY,41536497,51697.68,GP Services
Department of Health,"NHS Beds, Luton & Mk CCG",30/06/2022,C&M-GMS QOF Achievement,PRC DELEGATED CO-COMMISSIONING,WOLVERTON HEALTH CENTRE,41536498,36544.86,GP Services
Department of Health,"NHS Beds, Luton & Mk CCG",30/06/2022,C&M-GMS QOF Achievement,PRC DELEGATED CO-COMMISSIONING,GARDENIA & MARSH FARM PRACTICE,41536500,26174.78,GP Services
Department of Health,"NHS Beds, Luton & Mk CCG",30/06/2022,C&M-GMS QOF Achievement,PRC DELEGATED CO-COMMISSIONING,DR P TATMAN & PARTNERS,41536501,91277.69,GP Services
Department of Health,"NHS Beds, Luton & Mk CCG",30/06/2022,C&M-GMS QOF Achievement,PRC DELEGATED CO-COMMISSIONING,HEALTHY LIVING CENTRE,41536503,36864.61,GP Services
Department of Health,"NHS Beds, Luton & Mk CCG",30/06/2022,C&M-GMS QOF Achievement,PRC DELEGATED CO-COMMISSIONING,IVEL MEDICAL CENTRE,41536505,45326.29,GP Services
Department of Health,"NHS Beds, Luton & Mk CCG",30/06/2022,C&M-GMS QOF Achievement,PRC DELEGATED CO-COMMISSIONING,HARROLD MEDICAL PRACTICE,41536506,32329.98,GP Services
Department of Health,"NHS Beds, Luton & Mk CCG",30/06/2022,C&M-GMS QOF Achievement,PRC DELEGATED CO-COMMISSIONING,HILLTOPS MEDICAL CENTRE,41536507,49982.79,GP Services
Department of Health,"NHS Beds, Luton & Mk CCG",30/06/2022,C&M-GMS QOF Achievement,PRC DELEGATED CO-COMMISSIONING,GREENSANDS SURGERY,41536508,42310.08,GP Services
Department of Health,"NHS Beds, Luton & Mk CCG",30/06/2022,C&M-GMS QOF Achievement,PRC DELEGATED CO-COMMISSIONING,GREENSANDS MEDICAL PRACTICE,41536509,44058.37,GP Services
Department of Health,"NHS Beds, Luton & Mk CCG",30/06/2022,C&M-GMS QOF Achievement,PRC DELEGATED CO-COMMISSIONING,HOUGHTON CLOSE SURGERY,41536510,51676.64,GP Services
Department of Health,"NHS Beds, Luton & Mk CCG",30/06/2022,C&M-GMS QOF Achievement,PRC DELEGATED CO-COMMISSIONING,HOUGHTON REGIS MEDICAL CENTRE,41536511,25052.48,GP Services
Department of Health,"NHS Beds, Luton & Mk CCG",30/06/2022,C&M-GMS QOF Achievement,PRC DELEGATED CO-COMMISSIONING,KINGSBURY COURT,41536515,26644.50,GP Services
Department of Health,"NHS Beds, Luton & Mk CCG",30/06/2022,C&M-GMS QOF Achievement,PRC DELEGATED CO-COMMISSIONING,MILTON KEYNES VILLAGE PRACTICE,41536520,41608.68,GP Services
Department of Health,"NHS Beds, Luton & Mk CCG",30/06/2022,C&M-GMS QOF Achievement,PRC DELEGATED CO-COMMISSIONING,NEWPORT PAGNELL MEDICAL CENTRE,41536521,81097.55,GP Services
Department of Health,"NHS Beds, Luton & Mk CCG",30/06/2022,C&M-GMS QOF Achievement,PRC DELEGATED CO-COMMISSIONING,DR KEDWARD & PARTNERS,41536523,53239.30,GP Services
Department of Health,"NHS Beds, Luton & Mk CCG",30/06/2022,C&M-GMS QOF Achievement,PRC DELEGATED CO-COMMISSIONING,LARKSFIELD SURGERY,41536524,46391.75,GP Services
Department of Health,"NHS Beds, Luton & Mk CCG",30/06/2022,C&M-GMS QOF Achievement,PRC DELEGATED CO-COMMISSIONING,LARKSIDE PRACTICE,41536525,30718.24,GP Services
Department of Health,"NHS Beds, Luton & Mk CCG",30/06/2022,C&M-GMS QOF Achievement,PRC DELEGATED CO-COMMISSIONING,MERSEY PLACE MEDICAL PRACTICE,41536526,74600.09,GP Services
Department of Health,"NHS Beds, Luton & Mk CCG",30/06/2022,C&M-GMS QOF Achievement,PRC DELEGATED CO-COMMISSIONING,LEIGHTON ROAD MEDICAL PRACTICE,41536527,50576.66,GP Services
Department of Health,"NHS Beds, Luton & Mk CCG",30/06/2022,C&M-APMS QOF Achievement,PRC DELEGATED CO-COMMISSIONING,PRACTICE SURGERIES LTD,41536530,29381.92,GP Services
Department of Health,"NHS Beds, Luton & Mk CCG",30/06/2022,C&M-GMS QOF Achievement,PRC DELEGATED CO-COMMISSIONING,PRIORY GARDENS MEDICAL PRACTICE,41536531,45099.29,GP Services
Department of Health,"NHS Beds, Luton & Mk CCG",30/06/2022,C&M-GMS QOF Achievement,PRC DELEGATED CO-COMMISSIONING,PRIORY MEDICAL PRACTICE,41536532,30413.41,GP Services
Department of Health,"NHS Beds, Luton & Mk CCG",30/06/2022,C&M-APMS QOF Achievement,PRC DELEGATED CO-COMMISSIONING,PUTNOE MEDICAL CENTRE PARTNERSHIP,41536535,63671.73,GP Services
Department of Health,"NHS Beds, Luton & Mk CCG",30/06/2022,C&M-GMS QOF Achievement,PRC DELEGATED CO-COMMISSIONING,BEDFORD STREET SURGERY,41536537,40125.14,GP Services
Department of Health,"NHS Beds, Luton & Mk CCG",30/06/2022,C&M-GMS QOF Achievement,PRC DELEGATED CO-COMMISSIONING,QUEENS PARK SURGERY,41536540,43492.40,GP Services
Department of Health,"NHS Beds, Luton & Mk CCG",30/06/2022,C&M-GMS QOF Achievement,PRC DELEGATED CO-COMMISSIONING,ASHFIELD MEDICAL CENTRE MILTON KEYNES,41536541,34261.70,GP Services
Department of Health,"NHS Beds, Luton & Mk CCG",30/06/2022,C&M-GMS QOF Achievement,PRC DELEGATED CO-COMMISSIONING,BELL HOUSE MEDICAL PRACTICE,41536543,42272.29,GP Services
Department of Health,"NHS Beds, Luton & Mk CCG",30/06/2022,C&M-GMS QOF Achievement,PRC DELEGATED CO-COMMISSIONING,ASPLANDS MEDICAL CENTRE,41536544,48143.88,GP Services
Department of Health,"NHS Beds, Luton & Mk CCG",30/06/2022,C&M-GMS QOF Achievement,PRC DELEGATED CO-COMMISSIONING,OAKRIDGE PARK MEDICAL CENTRE,41536545,32781.90,GP Services
Department of Health,"NHS Beds, Luton & Mk CCG",30/06/2022,C&M-GMS QOF Achievement,PRC DELEGATED CO-COMMISSIONING,SALISBURY HOUSE SURGERY,41536547,38803.96,GP Services
Department of Health,"NHS Beds, Luton & Mk CCG",30/06/2022,C&M-GMS QOF Achievement,PRC DELEGATED CO-COMMISSIONING,PARKSIDE MEDICAL CENTRE,41536548,33105.61,GP Services
Department of Health,"NHS Beds, Luton & Mk CCG",30/06/2022,C&M-GMS QOF Achievement,PRC DELEGATED CO-COMMISSIONING,SANDY HEALTH CENTRE,41536549,30925.16,GP Services
Department of Health,"NHS Beds, Luton & Mk CCG",30/06/2022,C&M-GMS QOF Achievement,PRC DELEGATED CO-COMMISSIONING,OLIVER STREET SURGERY,41536550,34809.17,GP Services
Department of Health,"NHS Beds, Luton & Mk CCG",30/06/2022,C&M-GMS QOF Achievement,PRC DELEGATED CO-COMMISSIONING,SHEFFORD HEALTH CENTRE,41536553,64482.87,GP Services
Department of Health,"NHS Beds, Luton & Mk CCG",30/06/2022,C&M-APMS QOF Achievement,PRC DELEGATED CO-COMMISSIONING,PRACTICE SURGERIES LTD,41536554,32293.53,GP Services
Department of Health,"NHS Beds, Luton & Mk CCG",30/06/2022,C&M-GMS QOF Achievement,PRC DELEGATED CO-COMMISSIONING,COBBS GARDEN SURGERY,41536555,29545.85,GP Services
Department of Health,"NHS Beds, Luton & Mk CCG",30/06/2022,C&M-GMS QOF Achievement,PRC DELEGATED CO-COMMISSIONING,BUTE HOUSE MEDICAL PRACTICE,41536556,29140.60,GP Services
Department of Health,"NHS Beds, Luton & Mk CCG",30/06/2022,C&M-GMS QOF Achievement,PRC DELEGATED CO-COMMISSIONING,STONY MEDICAL CENTRE,41536558,40100.80,GP Services
Department of Health,"NHS Beds, Luton & Mk CCG",30/06/2022,C&M-GMS QOF Achievement,PRC DELEGATED CO-COMMISSIONING,STOPSLEY VILLAGE PRACTICE,41536559,29340.15,GP Services
Department of Health,"NHS Beds, Luton & Mk CCG",30/06/2022,C&M-GMS QOF Achievement,PRC DELEGATED CO-COMMISSIONING,CASTLE ST,41536560,31179.24,GP Services
Department of Health,"NHS Beds, Luton & Mk CCG",30/06/2022,C&M-GMS QOF Achievement,PRC DELEGATED CO-COMMISSIONING,SUNDON MEDICAL CENTRE,41536561,30799.15,GP Services
Department of Health,"NHS Beds, Luton & Mk CCG",30/06/2022,C&M-GMS QOF Achievement,PRC DELEGATED CO-COMMISSIONING,DR IMRAN ISMAIL (E81043),41536562,26740.47,GP Services
Department of Health,"NHS Beds, Luton & Mk CCG",30/06/2022,C&M-GMS QOF Achievement,PRC DELEGATED CO-COMMISSIONING,SOVEREIGN MEDICAL CENTRE,41536566,36729.34,GP Services
Department of Health,"NHS Beds, Luton & Mk CCG",30/06/2022,C&M-GMS QOF Achievement,PRC DELEGATED CO-COMMISSIONING,CONWAY MED CTRE,41536570,31609.69,GP Services
Department of Health,"NHS Beds, Luton & Mk CCG",30/06/2022,C&M-GMS QOF Achievement,PRC DELEGATED CO-COMMISSIONING,SAFFRON HEALTH PARTNERSHIP,41536571,85204.34,GP Services
Department of Health,"NHS Beds, Luton & Mk CCG",30/06/2022,C&M-GMS QOF Achievement,PRC DELEGATED CO-COMMISSIONING,MALZEARD ROAD MEDICAL PRACTICE,41536572,44243.27,GP Services
Department of Health,"NHS Beds, Luton & Mk CCG",30/06/2022,C&M-GMS QOF Achievement,PRC DELEGATED CO-COMMISSIONING,CMK MEDICAL CENTRE,41536573,36684.99,GP Services
Department of Health,"NHS Beds, Luton & Mk CCG",30/06/2022,C&M-GMS QOF Achievement,PRC DELEGATED CO-COMMISSIONING,DE PARYS GROUP,41536575,142386.59,GP Services
Department of Health,"NHS Beds, Luton & Mk CCG",30/06/2022,C&M-GMS QOF Achievement,PRC DELEGATED CO-COMMISSIONING,TODDINGTON MEDICAL CENTRE,41536577,28792.45,GP Services
Department of Health,"NHS Beds, Luton & Mk CCG",30/06/2022,C&M-GMS QOF Achievement,PRC DELEGATED CO-COMMISSIONING,BLENHEIM MEDICAL CENTRE,41536579,37069.76,GP Services
Department of Health,"NHS Beds, Luton & Mk CCG",30/06/2022,C&M-GMS QOF Achievement,PRC DELEGATED CO-COMMISSIONING,DR ME GLAZE & PARTNERS,41536580,37482.12,GP Services
Department of Health,"NHS Beds, Luton & Mk CCG",30/06/2022,C&M-GMS QOF Achievement,PRC DELEGATED CO-COMMISSIONING,WOODLAND PRACTICE,41536582,29209.48,GP Services
Department of Health,"NHS Beds, Luton & Mk CCG",30/06/2022,C&M-GMS QOF Achievement,PRC DELEGATED CO-COMMISSIONING,BASSETT ROAD MEDICAL PRACTICE,41536583,70708.71,GP Services
Department of Health,"NHS Beds, Luton & Mk CCG",30/06/2022,C&M-GMS QOF Achievement,PRC DELEGATED CO-COMMISSIONING,WATLING VALE MEDICAL CENTRE,41536584,32464.13,GP Services
Department of Health,"NHS Beds, Luton & Mk CCG",30/06/2022,C&M-GMS QOF Achievement,PRC DELEGATED CO-COMMISSIONING,RED HOUSE SURGERY,41536586,56918.74,GP Services
Department of Health,"NHS Beds, Luton & Mk CCG",30/06/2022,C&M-GMS QOF Achievement,PRC DELEGATED CO-COMMISSIONING,MEDICI MEDICAL CENTRE,41536587,27698.26,GP Services
Department of Health,"NHS Beds, Luton & Mk CCG",30/06/2022,C&M-GMS QOF Achievement,PRC DELEGATED CO-COMMISSIONING,WEST STREET SURGERY,41536588,46194.97,GP Services
Department of Health,"NHS Beds, Luton & Mk CCG",30/06/2022,C&M-GMS QOF Achievement,PRC DELEGATED CO-COMMISSIONING,WESTCROFT HEALTH CENTRE,41536590,42619.75,GP Services
Department of Health,"NHS Beds, Luton & Mk CCG",30/06/2022,C&M-GMS QOF Achievement,PRC DELEGATED CO-COMMISSIONING,WESTFIELD ROAD SURGERY,41536591,27964.95,GP Services
Department of Health,"NHS Beds, Luton & Mk CCG",30/06/2022,Clinical&Medical-Independent Sector,LONG TERM CONDITIONS,WHADDON MEDICAL CENTRE,41539705,40147.50,GP Services
Department of Health,"NHS Beds, Luton & Mk CCG",30/06/2022,Clinical&Medical-Othe Public Sector,REABLEMENT,CENTRAL BEDFORDSHIRE COUNCIL,41539964,1730188.00,Better Care Fund
Department of Health,"NHS Beds, Luton & Mk CCG",30/06/2022,Hcare Srv Rec NHS Trust,AMBULANCE SERVICES,EAST OF ENGLAND AMBULANCE SERVICE NHS TRUST,41540059,374211.00,NHS Healthcare Contract
Department of Health,"NHS Beds, Luton & Mk CCG",30/06/2022,Clinical&Medical-Independent Sector,COMMISSIONING - NON ACUTE,OCULAR OUTCOMES LTD,41540132,45462.67,Community Urgent Eyecare Service
Department of Health,"NHS Beds, Luton & Mk CCG",30/06/2022,Clinical&Medical-Othe Public Sector,REABLEMENT,BEDFORD BOROUGH COUNCIL,41540162,3172845.00,Better Care Fund
Department of Health,"NHS Beds, Luton & Mk CCG",30/06/2022,Other Gen Supplies & Srv,CONTINUING HEALTHCARE ASSESSMENT & SUPPORT,CHS HEALTHCARE,41540659,59361.60,Care Fees
Department of Health,"NHS Beds, Luton & Mk CCG",30/06/2022,Other Gen Supplies & Srv,CONTINUING HEALTHCARE ASSESSMENT & SUPPORT,CHS HEALTHCARE,41540696,59361.60,Care Fees
Department of Health,"NHS Beds, Luton & Mk CCG",30/06/2022,Other Gen Supplies & Srv,CONTINUING HEALTHCARE ASSESSMENT & SUPPORT,CHS HEALTHCARE,41540757,59361.60,Care Fees
Department of Health,"NHS Beds, Luton & Mk CCG",30/06/2022,Clinical&Medical-Independent Sector,COMMISSIONING - NON ACUTE,SPECSAVERS HEARCARE LTD,41540985,29836.00,Hearing Aid Service
Department of Health,"NHS Beds, Luton & Mk CCG",30/06/2022,Clinical&Medical-Independent Sector,CARERS,HC ONE LTD,41541346,61577.14,Care Fees
Department of Health,"NHS Beds, Luton & Mk CCG",30/06/2022,Clinical&Medical-Independent Sector,CARERS,HC ONE LTD,41541361,27209.40,Care Fees
Department of Health,"NHS Beds, Luton & Mk CCG",30/06/2022,Computer Software/License,CONTINUING HEALTHCARE ASSESSMENT & SUPPORT,CHS HEALTHCARE,41541450,62085.00,CHS Reviews
Department of Health,"NHS Beds, Luton & Mk CCG",30/06/2022,Clinical&Medical-Othe Public Sector,REABLEMENT,NHS BUCKINGHAMSHIRE CCG,41541621,98130.00,Better Care Fund
Department of Health,"NHS Beds, Luton & Mk CCG",30/06/2022,Cont Care PUPoCs (Non Closedown),CHC ADULT FULLY FUNDED,MORTON CHARTER SOLICITORS,41546667,116372.59,Care Fees
Department of Health,"NHS Beds, Luton & Mk CCG",30/06/2022,Hcare Srv Rec Fdtn Trust-Prior Year,NCAS/OATS,ST GEORGES UNIVERSITY HOSPITALS NHS FOUNDATION TRUST,41551902,90306.86,Out of Area Treatment
Department of Health,"NHS Beds, Luton & Mk CCG",30/06/2022,Hcare Srv Rec Fdtn Trust-Prior Year,NCAS/OATS,ST GEORGES UNIVERSITY HOSPITALS NHS FOUNDATION TRUST,41551937,-85130.12,Out of Area Treatment
Department of Health,"NHS Beds, Luton & Mk CCG",30/06/2022,Hcare Srv Rec Fdtn Trust-Prior Year,NCAS/OATS,ST GEORGES UNIVERSITY HOSPITALS NHS FOUNDATION TRUST,41552014,114816.35,Out of Area Treatment
Department of Health,"NHS Beds, Luton & Mk CCG",30/06/2022,Clinical&Medical-Independent Sector,PALLIATIVE CARE,HCRG CARE SERVICES LTD,41552106,138052.17,Physio and Diagnostic Imaging Services
Department of Health,"NHS Beds, Luton & Mk CCG",30/06/2022,Clinical&Medical-Independent Sector,PALLIATIVE CARE,HCRG CARE SERVICES LTD,41552120,138052.17,Physio and Diagnostic Imaging Services
Department of Health,"NHS Beds, Luton & Mk CCG",30/06/2022,Clinical&Medical-Independent Sector,ACUTE COMMISSIONING,SPAMEDICA LTD,41552141,144484.33,Independent Sector Healthcare Contract
Department of Health,"NHS Beds, Luton & Mk CCG",30/06/2022,Clinical&Medical-Independent Sector,CARERS,HCRG CARE SERVICES LTD,41552210,138052.17,Independent Sector Healthcare Contract
Department of Health,"NHS Beds, Luton & Mk CCG",30/06/2022,Computer Software/License,PRIMARY CARE IT,ACCURX LTD,41552277,33381.87,GP Services
Department of Health,"NHS Beds, Luton & Mk CCG",30/06/2022,Clinical&Medical-Independent Sector,ACUTE COMMISSIONING,SPAMEDICA LTD,41552311,160217.30,Independent Sector Healthcare Contract
Department of Health,"NHS Beds, Luton & Mk CCG",30/06/2022,Computer Software/License,IM&T,PHOENIX PARTNERSHIP (LEEDS) LTD,41552321,38394.31,Computer Costs
Department of Health,"NHS Beds, Luton & Mk CCG",30/06/2022,Professional Fees,PROGRAMME PROJECTS,ATTAIN HEALTH MANAGEMENT SERVICES LTD,41552409,32282.78,Procurement Services
Department of Health,"NHS Beds, Luton & Mk CCG",30/06/2022,Clinical&Medical-Independent Sector,COMMISSIONING - NON ACUTE,CIRCLE CLINICAL SERVICES LTD,41562708,41667.00,Independent Sector Healthcare Contract
Department of Health,"NHS Beds, Luton & Mk CCG",30/06/2022,Clinical&Medical-Independent Sector,COMMISSIONING - NON ACUTE,CIRCLE CLINICAL SERVICES LTD,41562710,887500.00,Independent Sector Healthcare Contract
Department of Health,"NHS Beds, Luton & Mk CCG",30/06/2022,Clinical&Medical-Independent Sector,COMMISSIONING - NON ACUTE,SPECSAVERS HEARCARE LTD,41562716,30450.10,Hearing Aid Service
Department of Health,"NHS Beds, Luton & Mk CCG",30/06/2022,Clinical&Medical-Independent Sector,COMMISSIONING - NON ACUTE,WHADDON MEDICAL CENTRE,41562727,50928.00,Community Cardiology Service Contract
Department of Health,"NHS Beds, Luton & Mk CCG",30/06/2022,Clinical&Medical-Independent Sector,COMMISSIONING - NON ACUTE,WHADDON MEDICAL CENTRE,41562730,31054.00,Community Cardiology Service Contract
Department of Health,"NHS Beds, Luton & Mk CCG",30/06/2022,Clinical&Medical-Independent Sector,COMMISSIONING - NON ACUTE,WHADDON MEDICAL CENTRE,41562733,40147.50,Community Cardiology Service Contract
